[Event "Titled Tuesday Blitz December 06 Late 2022"]
[White "Joubert, Dantelle"]
[Black "Rama, Tejas"]
[WhiteFideId "14310813"]
[BlackFideId "30907381"]
[WhiteElo "1507"]
[BlackElo "2089"]
[Result "0-1"]
[Round "05"]
[TimeControl "180+1"]
[Date "2022.12.07"]
[WhiteClock "0:00:00"]
[BlackClock "0:00:02"]

1. d4 {[%clk 0:02:53]}  Nf6 {[%clk 0:02:54]} 2. c4 {[%clk 0:02:52]}  e6 {[%clk 0:02:54]} 3. Nf3 {[%clk 0:02:50]}  d5 {[%clk 0:02:54]} 4. Nc3 {[%clk 0:02:49]}  c5 {[%clk 0:02:53]} 5. cxd5 {[%clk 0:02:48]}  Nxd5 {[%clk 0:02:53]} 6. e4 {[%clk 0:02:39]}  Nxc3 {[%clk 0:02:53]} 7. bxc3 {[%clk 0:02:39]}  cxd4 {[%clk 0:02:54]} 8. cxd4 {[%clk 0:02:39]}  Bb4+ {[%clk 0:02:54]} 9. Bd2 {[%clk 0:02:39]}  Bxd2+ {[%clk 0:02:55]} 10. Qxd2 {[%clk 0:02:40]}  O-O {[%clk 0:02:56]} 11. Bc4 {[%clk 0:02:37]}  Nd7 {[%clk 0:02:55]} 12. O-O {[%clk 0:02:36]}  b6 {[%clk 0:02:55]} 13. Rfe1 {[%clk 0:02:34]}  Bb7 {[%clk 0:02:55]} 14. Rac1 {[%clk 0:02:31]}  Rc8 {[%clk 0:02:49]} 15. d5 {[%clk 0:02:29]}  Nc5 {[%clk 0:02:30]} 16. dxe6 {[%clk 0:02:23]}  fxe6 {[%clk 0:02:31]} 17. Qxd8 {[%clk 0:01:52]}  Rcxd8 {[%clk 0:02:05]} 18. Ng5 {[%clk 0:01:46]}  Rf6 {[%clk 0:01:52]} 19. f3 {[%clk 0:01:38]}  h6 {[%clk 0:01:44]} 20. Nh3 {[%clk 0:01:33]}  Kf8 {[%clk 0:01:11]} 21. Red1 {[%clk 0:01:29]}  Ke7 {[%clk 0:01:03]} 22. Rxd8 {[%clk 0:01:25]}  Kxd8 {[%clk 0:01:04]} 23. Rd1+ {[%clk 0:01:25]}  Ke7 {[%clk 0:01:00]} 24. Nf2 {[%clk 0:01:18]}  h5 {[%clk 0:00:48]} 25. Nd3 {[%clk 0:01:17]}  Nxd3 {[%clk 0:00:45]} 26. Rxd3 {[%clk 0:01:16]}  e5 {[%clk 0:00:46]} 27. Ra3 {[%clk 0:01:06]}  a5 {[%clk 0:00:37]} 28. Kf2 {[%clk 0:01:03]}  Bxe4 {[%clk 0:00:36]} 29. Re3 {[%clk 0:00:52]}  Bg6 {[%clk 0:00:36]} 30. Rxe5+ {[%clk 0:00:50]}  Kd6 {[%clk 0:00:37]} 31. Rb5 {[%clk 0:00:41]}  Kc7 {[%clk 0:00:32]} 32. Rg5 {[%clk 0:00:40]}  a4 {[%clk 0:00:27]} 33. a3 {[%clk 0:00:36]}  Rc6 {[%clk 0:00:18]} 34. Bb5 {[%clk 0:00:35]}  Rc2+ {[%clk 0:00:17]} 35. Kg3 {[%clk 0:00:35]}  h4+ {[%clk 0:00:04]} 36. Kxh4 {[%clk 0:00:34]}  Rb2 {[%clk 0:00:02]} 37. Bxa4 {[%clk 0:00:30]}  Bb1 {[%clk 0:00:03]} 38. Rxg7+ {[%clk 0:00:27]}  Kd6 {[%clk 0:00:03]} 39. Rg4 {[%clk 0:00:25]}  Kc5 {[%clk 0:00:02]} 40. Kg3 {[%clk 0:00:24]}  Ra2 {[%clk 0:00:02]} 41. Rb4 {[%clk 0:00:09]}  Rxa3 {[%clk 0:00:02]} 42. Rxb1 {[%clk 0:00:09]}  Rxa4 {[%clk 0:00:03]} 43. h4 {[%clk 0:00:09]}  b5 {[%clk 0:00:03]} 44. h5 {[%clk 0:00:09]}  b4 {[%clk 0:00:03]} 45. Kh3 {[%clk 0:00:08]}  Kd4 {[%clk 0:00:02]} 46. g4 {[%clk 0:00:08]}  Kc3 {[%clk 0:00:02]} 47. Kg3 {[%clk 0:00:08]}  Ra2 {[%clk 0:00:02]} 48. g5 {[%clk 0:00:06]}  b3 {[%clk 0:00:01]} 49. g6 {[%clk 0:00:05]}  Rb2 {[%clk 0:00:01]} 50. Rc1+ {[%clk 0:00:05]}  Rc2 {[%clk 0:00:01]} 51. Rb1 {[%clk 0:00:04]}  Rd2 {[%clk 0:00:01]} 52. Rxb3+ {[%clk 0:00:03]}  Kxb3 {[%clk 0:00:01]} 53. Kg4 {[%clk 0:00:01]}  Rd6 {[%clk 0:00:02]} 54. f4 {[%clk 0:00:00]}  Kc4 {[%clk 0:00:02]} 0-1


[Site "https://www.chess.com"]

[Event "Titled Tuesday Blitz December 06 Late 2022"]
[White "Khandelwal, Ankush"]
[Black "Ambartsumova, Karina"]
[WhiteFideId "413470"]
[BlackFideId "4166299"]
[WhiteElo "2271"]
[BlackElo "2319"]
[Result "1-0"]
[Round "05"]
[TimeControl "180+1"]
[Date "2022.12.07"]
[WhiteClock "0:00:17"]
[BlackClock "0:00:13"]

1. e4 {[%clk 0:02:58]}  c5 {[%clk 0:02:56]} 2. Nf3 {[%clk 0:02:58]}  Nc6 {[%clk 0:02:55]} 3. d4 {[%clk 0:02:58]}  cxd4 {[%clk 0:02:55]} 4. Nxd4 {[%clk 0:02:59]}  Qb6 {[%clk 0:02:56]} 5. Nb3 {[%clk 0:02:55]}  Nf6 {[%clk 0:02:56]} 6. Nc3 {[%clk 0:02:19]}  e6 {[%clk 0:02:55]} 7. Bd3 {[%clk 0:02:16]}  Bb4 {[%clk 0:02:53]} 8. O-O {[%clk 0:02:11]}  O-O {[%clk 0:02:49]} 9. Be3 {[%clk 0:02:10]}  Qc7 {[%clk 0:02:48]} 10. Nb5 {[%clk 0:02:00]}  Qd8 {[%clk 0:02:41]} 11. f4 {[%clk 0:01:56]}  a6 {[%clk 0:02:36]} 12. N5d4 {[%clk 0:01:39]}  d5 {[%clk 0:02:34]} 13. e5 {[%clk 0:01:37]}  Nd7 {[%clk 0:02:25]} 14. Rf3 {[%clk 0:01:11]}  g6 {[%clk 0:02:03]} 15. Rg3 {[%clk 0:00:54]}  Nxd4 {[%clk 0:01:58]} 16. Nxd4 {[%clk 0:00:53]}  Bc5 {[%clk 0:01:58]} 17. c3 {[%clk 0:00:51]}  b5 {[%clk 0:01:45]} 18. Qg4 {[%clk 0:00:48]}  Re8 {[%clk 0:01:15]} 19. h4 {[%clk 0:00:46]}  Bf8 {[%clk 0:01:08]} 20. h5 {[%clk 0:00:46]}  Bg7 {[%clk 0:00:50]} 21. hxg6 {[%clk 0:00:45]}  hxg6 {[%clk 0:00:51]} 22. Bxg6 {[%clk 0:00:33]}  fxg6 {[%clk 0:00:51]} 23. Qxg6 {[%clk 0:00:24]}  Qe7 {[%clk 0:00:50]} 24. Nxe6 {[%clk 0:00:23]}  Nf8 {[%clk 0:00:40]} 25. Qxg7+ {[%clk 0:00:23]}  Qxg7 {[%clk 0:00:40]} 26. Nxg7 {[%clk 0:00:22]}  Kf7 {[%clk 0:00:25]} 27. Nxe8 {[%clk 0:00:21]}  Kxe8 {[%clk 0:00:26]} 28. Rd1 {[%clk 0:00:20]}  Be6 {[%clk 0:00:24]} 29. Bc5 {[%clk 0:00:20]}  Nd7 {[%clk 0:00:22]} 30. f5 {[%clk 0:00:20]}  Nxc5 {[%clk 0:00:16]} 31. fxe6 {[%clk 0:00:21]}  Ke7 {[%clk 0:00:17]} 32. Rxd5 {[%clk 0:00:21]}  Nxe6 {[%clk 0:00:16]} 33. Rgd3 {[%clk 0:00:16]}  Nf4 {[%clk 0:00:16]} 34. Rd7+ {[%clk 0:00:16]}  Ke6 {[%clk 0:00:17]} 35. R3d6+ {[%clk 0:00:13]}  Kxe5 {[%clk 0:00:17]} 36. Rd1 {[%clk 0:00:13]}  Rf8 {[%clk 0:00:14]} 37. Re1+ {[%clk 0:00:11]}  Kf5 {[%clk 0:00:11]} 38. Ra7 {[%clk 0:00:08]}  Rf6 {[%clk 0:00:11]} 39. Rae7 {[%clk 0:00:07]}  Kg4 {[%clk 0:00:11]} 40. R7e4 {[%clk 0:00:07]}  Kg3 {[%clk 0:00:11]} 41. R1e3+ {[%clk 0:00:07]}  Kg4 {[%clk 0:00:10]} 42. Rf3 {[%clk 0:00:08]}  Kg5 {[%clk 0:00:07]} 43. Rfxf4 {[%clk 0:00:07]}  Rxf4 {[%clk 0:00:08]} 44. Rxf4 {[%clk 0:00:08]}  Kxf4 {[%clk 0:00:09]} 45. Kf2 {[%clk 0:00:09]}  Kg4 {[%clk 0:00:09]} 46. g3 {[%clk 0:00:10]}  Kg5 {[%clk 0:00:09]} 47. b4 {[%clk 0:00:10]}  Kg4 {[%clk 0:00:09]} 48. Kg2 {[%clk 0:00:11]}  Kg5 {[%clk 0:00:10]} 49. Kf3 {[%clk 0:00:11]}  Kh5 {[%clk 0:00:11]} 50. Kf4 {[%clk 0:00:12]}  Kh6 {[%clk 0:00:11]} 51. g4 {[%clk 0:00:12]}  Kg6 {[%clk 0:00:12]} 52. g5 {[%clk 0:00:13]}  Kg7 {[%clk 0:00:12]} 53. Kg4 {[%clk 0:00:14]}  Kf7 {[%clk 0:00:13]} 54. Kf5 {[%clk 0:00:14]}  Kg7 {[%clk 0:00:14]} 55. g6 {[%clk 0:00:15]}  Kg8 {[%clk 0:00:15]} 56. Kf6 {[%clk 0:00:16]}  Kf8 {[%clk 0:00:15]} 57. g7+ {[%clk 0:00:17]}  Kg8 {[%clk 0:00:16]} 58. Kg6 {[%clk 0:00:17]}  a5 {[%clk 0:00:15]} 59. Kf6 {[%clk 0:00:16]}  a4 {[%clk 0:00:14]} 60. a3 {[%clk 0:00:16]}  Kh7 {[%clk 0:00:13]} 61. Kf7 {[%clk 0:00:17]} 1-0


[Site "https://www.chess.com"]

[Event "Titled Tuesday Blitz December 06 Late 2022"]
[White "Kim, Sergey"]
[Black "Hoffmann, Asa"]
[WhiteFideId "13700570"]
[BlackFideId "2001470"]
[WhiteElo "2594"]
[BlackElo "2117"]
[Result "0-1"]
[Round "05"]
[TimeControl "180+1"]
[Date "2022.12.07"]
[WhiteClock "0:01:00"]
[BlackClock "0:00:40"]

1. d4 {[%clk 0:03:00]}  Nf6 {[%clk 0:02:55]} 2. c4 {[%clk 0:03:00]}  c5 {[%clk 0:02:51]} 3. d5 {[%clk 0:03:00]}  e5 {[%clk 0:02:44]} 4. Nc3 {[%clk 0:03:00]}  d6 {[%clk 0:02:43]} 5. e4 {[%clk 0:03:00]}  Be7 {[%clk 0:02:43]} 6. Nge2 {[%clk 0:03:00]}  Nbd7 {[%clk 0:02:43]} 7. Ng3 {[%clk 0:03:00]}  g6 {[%clk 0:02:42]} 8. Be2 {[%clk 0:02:58]}  h5 {[%clk 0:02:42]} 9. h3 {[%clk 0:02:57]}  Nh7 {[%clk 0:02:35]} 10. O-O {[%clk 0:02:47]}  Bg5 {[%clk 0:02:34]} 11. Bxg5 {[%clk 0:02:44]}  Qxg5 {[%clk 0:02:30]} 12. Nb5 {[%clk 0:02:44]}  Ke7 {[%clk 0:02:29]} 13. Bd3 {[%clk 0:02:31]}  a6 {[%clk 0:02:24]} 14. Nc3 {[%clk 0:02:30]}  Ndf6 {[%clk 0:02:23]} 15. Kh1 {[%clk 0:02:26]}  h4 {[%clk 0:02:19]} 16. Nge2 {[%clk 0:02:25]}  Nh5 {[%clk 0:02:19]} 17. Qc1 {[%clk 0:02:22]}  Bd7 {[%clk 0:02:11]} 18. a3 {[%clk 0:02:18]}  f5 {[%clk 0:02:10]} 19. b4 {[%clk 0:02:11]}  b6 {[%clk 0:02:09]} 20. bxc5 {[%clk 0:02:10]}  bxc5 {[%clk 0:02:08]} 21. Rb1 {[%clk 0:02:10]}  Qxc1 {[%clk 0:02:05]} 22. Rfxc1 {[%clk 0:02:09]}  N7f6 {[%clk 0:02:04]} 23. Rb7 {[%clk 0:02:05]}  Rhb8 {[%clk 0:01:56]} 24. Rcb1 {[%clk 0:02:04]}  Rxb7 {[%clk 0:01:56]} 25. Rxb7 {[%clk 0:02:04]}  Kd8 {[%clk 0:01:54]} 26. Kh2 {[%clk 0:01:29]}  Kc8 {[%clk 0:01:53]} 27. Rb1 {[%clk 0:01:29]}  Kc7 {[%clk 0:01:50]} 28. g3 {[%clk 0:01:28]}  hxg3+ {[%clk 0:01:47]} 29. fxg3 {[%clk 0:01:25]}  Rh8 {[%clk 0:01:45]} 30. Kg2 {[%clk 0:01:20]}  f4 {[%clk 0:01:43]} 31. g4 {[%clk 0:01:18]}  Ng7 {[%clk 0:01:31]} 32. Ng1 {[%clk 0:01:18]}  Nh7 {[%clk 0:01:13]} 33. Nf3 {[%clk 0:01:18]}  Rb8 {[%clk 0:01:10]} 34. Rxb8 {[%clk 0:01:15]}  Kxb8 {[%clk 0:01:10]} 35. Bc2 {[%clk 0:01:16]}  Kc7 {[%clk 0:01:09]} 36. Ba4 {[%clk 0:01:15]}  Bxa4 {[%clk 0:01:04]} 37. Nxa4 {[%clk 0:01:15]}  Ne8 {[%clk 0:01:03]} 38. h4 {[%clk 0:01:14]}  Nef6 {[%clk 0:00:59]} 39. Nc3 {[%clk 0:01:05]}  Nxg4 {[%clk 0:00:56]} 40. Kh3 {[%clk 0:01:04]}  Ne3 {[%clk 0:00:56]} 41. Nd2 {[%clk 0:01:03]}  g5 {[%clk 0:00:53]} 42. h5 {[%clk 0:01:01]}  g4+ {[%clk 0:00:52]} 43. Kh4 {[%clk 0:01:02]}  g3 {[%clk 0:00:48]} 44. Kh3 {[%clk 0:01:01]}  Ng5+ {[%clk 0:00:47]} 45. Kh4 {[%clk 0:01:00]}  g2 {[%clk 0:00:46]} 46. Ne2 {[%clk 0:01:00]}  f3 {[%clk 0:00:40]} 0-1


[Site "https://www.chess.com"]

[Event "Titled Tuesday Blitz December 06 Late 2022"]
[White "Kleiman, Jake"]
[Black "Pakleza, Zbigniew"]
[WhiteFideId "2020041"]
[BlackFideId "1119290"]
[WhiteElo "2591"]
[BlackElo "2410"]
[Result "1-0"]
[Round "05"]
[TimeControl "180+1"]
[Date "2022.12.06"]
[WhiteClock "0:00:53"]
[BlackClock "0:00:16"]

1. e4 {[%clk 0:02:57]}  d6 {[%clk 0:03:00]} 2. d4 {[%clk 0:02:57]}  Nf6 {[%clk 0:03:00]} 3. Nc3 {[%clk 0:02:58]}  c6 {[%clk 0:03:00]} 4. a4 {[%clk 0:02:55]}  a5 {[%clk 0:02:54]} 5. Be3 {[%clk 0:02:53]}  Qb6 {[%clk 0:02:42]} 6. Rb1 {[%clk 0:02:51]}  Ng4 {[%clk 0:02:41]} 7. Bc1 {[%clk 0:02:38]}  e5 {[%clk 0:02:39]} 8. Nf3 {[%clk 0:02:34]}  Nd7 {[%clk 0:02:37]} 9. Bc4 {[%clk 0:02:20]}  Be7 {[%clk 0:02:36]} 10. O-O {[%clk 0:02:20]}  O-O {[%clk 0:02:36]} 11. h3 {[%clk 0:02:12]}  Ngf6 {[%clk 0:02:36]} 12. Re1 {[%clk 0:02:12]}  h6 {[%clk 0:02:31]} 13. Ba2 {[%clk 0:02:08]}  Re8 {[%clk 0:02:28]} 14. Be3 {[%clk 0:02:01]}  Qc7 {[%clk 0:02:26]} 15. Qd2 {[%clk 0:01:57]}  Nf8 {[%clk 0:02:22]} 16. Rbd1 {[%clk 0:01:43]}  Ng6 {[%clk 0:02:06]} 17. dxe5 {[%clk 0:01:28]}  Nxe5 {[%clk 0:01:53]} 18. Nxe5 {[%clk 0:01:19]}  dxe5 {[%clk 0:01:54]} 19. Bxh6 {[%clk 0:01:19]}  gxh6 {[%clk 0:01:40]} 20. Qxh6 {[%clk 0:01:18]}  Nh7 {[%clk 0:00:24]} 21. Bxf7+ {[%clk 0:01:03]}  Kxf7 {[%clk 0:00:25]} 22. Qxh7+ {[%clk 0:01:03]}  Kf8 {[%clk 0:00:22]} 23. Re3 {[%clk 0:00:54]}  Bf6 {[%clk 0:00:16]} 24. Qxc7 {[%clk 0:00:53]} 1-0


[Site "https://www.chess.com"]

[Event "Titled Tuesday Blitz December 06 Late 2022"]
[White "Kollars, Dmitrij"]
[Black "Ibarra Jerez, Jose Carlos"]
[WhiteFideId "12909572"]
[BlackFideId "2226332"]
[WhiteElo "2584"]
[BlackElo "2638"]
[Result "0-1"]
[Round "05"]
[TimeControl "180+1"]
[Date "2022.12.06"]
[WhiteClock "0:00:01"]
[BlackClock "0:00:41"]

1. d4 {[%clk 0:03:00]}  Nf6 {[%clk 0:02:59]} 2. c4 {[%clk 0:02:58]}  d6 {[%clk 0:02:59]} 3. Nc3 {[%clk 0:02:57]}  e5 {[%clk 0:03:00]} 4. Nf3 {[%clk 0:02:57]}  e4 {[%clk 0:03:00]} 5. Ng5 {[%clk 0:02:52]}  Qe7 {[%clk 0:03:00]} 6. Qc2 {[%clk 0:02:38]}  Bf5 {[%clk 0:02:59]} 7. f3 {[%clk 0:02:35]}  Nc6 {[%clk 0:02:55]} 8. d5 {[%clk 0:02:08]}  Nb8 {[%clk 0:02:52]} 9. Ngxe4 {[%clk 0:01:59]}  Bxe4 {[%clk 0:02:51]} 10. Nxe4 {[%clk 0:01:54]}  Nxe4 {[%clk 0:02:51]} 11. fxe4 {[%clk 0:01:49]}  Nd7 {[%clk 0:02:50]} 12. g3 {[%clk 0:01:50]}  g6 {[%clk 0:02:50]} 13. Bh3 {[%clk 0:01:43]}  Nc5 {[%clk 0:02:11]} 14. Bg2 {[%clk 0:01:15]}  Bg7 {[%clk 0:02:09]} 15. Rb1 {[%clk 0:01:14]}  a5 {[%clk 0:02:06]} 16. O-O {[%clk 0:01:09]}  O-O {[%clk 0:02:06]} 17. Be3 {[%clk 0:01:05]}  b6 {[%clk 0:02:02]} 18. Bxc5 {[%clk 0:00:44]}  bxc5 {[%clk 0:02:02]} 19. Rf3 {[%clk 0:00:38]}  Bd4+ {[%clk 0:01:46]} 20. Kh1 {[%clk 0:00:37]}  h5 {[%clk 0:01:44]} 21. Rb3 {[%clk 0:00:34]}  Kg7 {[%clk 0:01:41]} 22. h4 {[%clk 0:00:33]}  Be5 {[%clk 0:01:40]} 23. Rf1 {[%clk 0:00:29]}  Rab8 {[%clk 0:01:32]} 24. Rb5 {[%clk 0:00:27]}  Bxg3 {[%clk 0:01:28]} 25. Qc3+ {[%clk 0:00:24]}  Be5 {[%clk 0:01:26]} 26. Qh3 {[%clk 0:00:25]}  Rxb5 {[%clk 0:01:20]} 27. cxb5 {[%clk 0:00:25]}  Bxb2 {[%clk 0:01:20]} 28. a4 {[%clk 0:00:26]}  Bf6 {[%clk 0:01:20]} 29. Kg1 {[%clk 0:00:12]}  Bb2 {[%clk 0:01:09]} 30. Qb3 {[%clk 0:00:10]}  Bd4+ {[%clk 0:01:07]} 31. e3 {[%clk 0:00:11]}  Be5 {[%clk 0:01:07]} 32. b6 {[%clk 0:00:06]}  Qxh4 {[%clk 0:01:05]} 33. Rf3 {[%clk 0:00:06]}  cxb6 {[%clk 0:01:04]} 34. Qxb6 {[%clk 0:00:07]}  Qe1+ {[%clk 0:00:52]} 35. Bf1 {[%clk 0:00:07]}  Qd2 {[%clk 0:00:53]} 36. Bg2 {[%clk 0:00:04]}  c4 {[%clk 0:00:52]} 37. Rf2 {[%clk 0:00:02]}  Bh2+ {[%clk 0:00:48]} 38. Kxh2 {[%clk 0:00:01]}  Qxf2 {[%clk 0:00:49]} 39. Qd4+ {[%clk 0:00:01]}  Kg8 {[%clk 0:00:48]} 40. e5 {[%clk 0:00:01]}  dxe5 {[%clk 0:00:43]} 41. Qxe5 {[%clk 0:00:01]}  h4 {[%clk 0:00:41]} 0-1


[Site "https://www.chess.com"]

[Event "Titled Tuesday Blitz December 06 Late 2022"]
[White "Lopez Gracia, Fernando"]
[Black "Liu, Kelsey"]
[WhiteFideId "2207184"]
[BlackFideId "30944481"]
[WhiteElo "2424"]
[BlackElo "2279"]
[Result "1-0"]
[Round "05"]
[TimeControl "180+1"]
[Date "2022.12.07"]
[WhiteClock "0:00:37"]
[BlackClock "0:00:04"]

1. c4 {[%clk 0:02:50]}  Nf6 {[%clk 0:02:59]} 2. Nc3 {[%clk 0:02:51]}  e6 {[%clk 0:02:59]} 3. e4 {[%clk 0:02:51]}  d5 {[%clk 0:02:57]} 4. e5 {[%clk 0:02:50]}  Nfd7 {[%clk 0:02:56]} 5. d4 {[%clk 0:02:44]}  c6 {[%clk 0:02:54]} 6. f4 {[%clk 0:02:42]}  Be7 {[%clk 0:02:51]} 7. Nf3 {[%clk 0:02:42]}  Nb6 {[%clk 0:02:41]} 8. c5 {[%clk 0:02:39]}  N6d7 {[%clk 0:02:41]} 9. Be3 {[%clk 0:02:38]}  a5 {[%clk 0:02:41]} 10. a3 {[%clk 0:02:37]}  b6 {[%clk 0:02:37]} 11. b4 {[%clk 0:02:37]}  bxc5 {[%clk 0:02:26]} 12. bxc5 {[%clk 0:02:36]}  Ba6 {[%clk 0:02:21]} 13. Bxa6 {[%clk 0:02:36]}  Nxa6 {[%clk 0:02:21]} 14. O-O {[%clk 0:02:36]}  Qc7 {[%clk 0:02:10]} 15. Rb1 {[%clk 0:02:37]}  O-O {[%clk 0:02:09]} 16. Qd2 {[%clk 0:02:33]}  Rfb8 {[%clk 0:02:08]} 17. Na4 {[%clk 0:02:32]}  Rb5 {[%clk 0:02:04]} 18. Nc3 {[%clk 0:02:31]}  Rbb8 {[%clk 0:02:04]} 19. Rfc1 {[%clk 0:02:25]}  Bd8 {[%clk 0:01:47]} 20. Na4 {[%clk 0:02:15]}  Qa7 {[%clk 0:01:41]} 21. Ne1 {[%clk 0:02:11]}  Rb5 {[%clk 0:01:35]} 22. Nc3 {[%clk 0:02:09]}  Rbb8 {[%clk 0:01:35]} 23. Nd3 {[%clk 0:02:05]}  Nc7 {[%clk 0:01:35]} 24. a4 {[%clk 0:01:59]}  Na6 {[%clk 0:01:34]} 25. Na2 {[%clk 0:01:57]}  Rb7 {[%clk 0:01:21]} 26. Rxb7 {[%clk 0:01:29]}  Qxb7 {[%clk 0:01:18]} 27. Rc2 {[%clk 0:01:30]}  Nb4 {[%clk 0:01:11]} 28. Rb2 {[%clk 0:01:28]}  Qa7 {[%clk 0:01:05]} 29. Ndxb4 {[%clk 0:01:11]}  axb4 {[%clk 0:01:06]} 30. Nxb4 {[%clk 0:01:11]}  Ba5 {[%clk 0:00:56]} 31. Qc2 {[%clk 0:01:12]}  Qc7 {[%clk 0:00:35]} 32. Bd2 {[%clk 0:01:08]}  Nb8 {[%clk 0:00:34]} 33. Qb1 {[%clk 0:00:56]}  g6 {[%clk 0:00:31]} 34. Nxd5 {[%clk 0:00:48]}  cxd5 {[%clk 0:00:20]} 35. Bxa5 {[%clk 0:00:49]}  Rxa5 {[%clk 0:00:11]} 36. Rxb8+ {[%clk 0:00:49]}  Kg7 {[%clk 0:00:12]} 37. Rb4 {[%clk 0:00:49]}  Qa7 {[%clk 0:00:11]} 38. Qc2 {[%clk 0:00:48]}  Qa6 {[%clk 0:00:11]} 39. c6 {[%clk 0:00:47]}  Qc8 {[%clk 0:00:11]} 40. Rb5 {[%clk 0:00:40]}  Ra6 {[%clk 0:00:10]} 41. c7 {[%clk 0:00:40]}  Ra8 {[%clk 0:00:04]} 42. Qc6 {[%clk 0:00:37]} 1-0


[Site "https://www.chess.com"]

[Event "Titled Tuesday Blitz December 06 Late 2022"]
[White "Mahdavi, Reza"]
[Black "Godzwon, Iwo"]
[WhiteFideId "12595926"]
[BlackFideId "21802483"]
[WhiteElo "2242"]
[BlackElo "2284"]
[Result "0-1"]
[Round "05"]
[TimeControl "180+1"]
[Date "2022.12.07"]
[WhiteClock "0:00:18"]
[BlackClock "0:00:04"]

1. e4 {[%clk 0:02:55]}  c5 {[%clk 0:03:00]} 2. Nf3 {[%clk 0:02:55]}  e6 {[%clk 0:03:01]} 3. c3 {[%clk 0:02:50]}  Nf6 {[%clk 0:03:00]} 4. e5 {[%clk 0:02:51]}  Nd5 {[%clk 0:03:01]} 5. g3 {[%clk 0:02:52]}  d6 {[%clk 0:03:00]} 6. exd6 {[%clk 0:02:53]}  Bxd6 {[%clk 0:03:00]} 7. Bg2 {[%clk 0:02:53]}  Nc6 {[%clk 0:03:00]} 8. O-O {[%clk 0:02:54]}  O-O {[%clk 0:03:01]} 9. d4 {[%clk 0:02:54]}  cxd4 {[%clk 0:03:01]} 10. Nxd4 {[%clk 0:02:53]}  Nxd4 {[%clk 0:02:57]} 11. Qxd4 {[%clk 0:02:54]}  Qf6 {[%clk 0:02:32]} 12. Qxf6 {[%clk 0:02:31]}  Nxf6 {[%clk 0:02:31]} 13. Rd1 {[%clk 0:02:32]}  Bc7 {[%clk 0:02:30]} 14. Be3 {[%clk 0:02:30]}  e5 {[%clk 0:01:50]} 15. Na3 {[%clk 0:02:26]}  Bg4 {[%clk 0:01:48]} 16. Rd2 {[%clk 0:02:26]}  e4 {[%clk 0:01:45]} 17. Nb5 {[%clk 0:02:24]}  Be5 {[%clk 0:01:38]} 18. h3 {[%clk 0:02:24]}  Bd7 {[%clk 0:01:37]} 19. Nxa7 {[%clk 0:02:20]}  Bb8 {[%clk 0:01:22]} 20. Rxd7 {[%clk 0:02:21]}  Nxd7 {[%clk 0:01:22]} 21. Nb5 {[%clk 0:02:21]}  f5 {[%clk 0:01:19]} 22. Rd1 {[%clk 0:02:09]}  Ne5 {[%clk 0:01:18]} 23. a3 {[%clk 0:02:04]}  Nd3 {[%clk 0:01:17]} 24. Bf1 {[%clk 0:02:00]}  Nxb2 {[%clk 0:01:13]} 25. Rd7 {[%clk 0:02:00]}  Be5 {[%clk 0:01:09]} 26. Rxb7 {[%clk 0:01:51]}  Rfc8 {[%clk 0:01:05]} 27. Rd7 {[%clk 0:01:43]}  Nc4 {[%clk 0:00:54]} 28. Bd4 {[%clk 0:01:41]}  Bxd4 {[%clk 0:00:47]} 29. Nxd4 {[%clk 0:01:35]}  g6 {[%clk 0:00:38]} 30. g4 {[%clk 0:01:35]}  Ne5 {[%clk 0:00:38]} 31. Rd5 {[%clk 0:01:31]}  Nf3+ {[%clk 0:00:30]} 32. Nxf3 {[%clk 0:01:32]}  exf3 {[%clk 0:00:31]} 33. gxf5 {[%clk 0:01:33]}  Rxc3 {[%clk 0:00:31]} 34. fxg6 {[%clk 0:01:28]}  hxg6 {[%clk 0:00:32]} 35. Kh2 {[%clk 0:01:28]}  Raxa3 {[%clk 0:00:31]} 36. Kg3 {[%clk 0:01:29]}  Kg7 {[%clk 0:00:32]} 37. Rd6 {[%clk 0:01:27]}  Kh6 {[%clk 0:00:30]} 38. h4 {[%clk 0:01:26]}  Ra1 {[%clk 0:00:28]} 39. Bd3 {[%clk 0:01:19]}  Rg1+ {[%clk 0:00:16]} 40. Kxf3 {[%clk 0:01:19]}  Kh5 {[%clk 0:00:15]} 41. Rd4 {[%clk 0:01:17]}  Rc5 {[%clk 0:00:09]} 42. Rd8 {[%clk 0:01:08]}  Kxh4 {[%clk 0:00:07]} 43. Kf4 {[%clk 0:00:59]}  Rg4+ {[%clk 0:00:05]} 44. Ke3 {[%clk 0:00:56]}  Rc6 {[%clk 0:00:05]} 45. Rh8+ {[%clk 0:00:42]}  Kg5 {[%clk 0:00:05]} 46. Rf8 {[%clk 0:00:43]}  Re6+ {[%clk 0:00:05]} 47. Kd2 {[%clk 0:00:42]}  Rf4 {[%clk 0:00:05]} 48. Rg8 {[%clk 0:00:29]}  Rxf2+ {[%clk 0:00:05]} 49. Kc3 {[%clk 0:00:30]}  Rf3 {[%clk 0:00:06]} 50. Kc4 {[%clk 0:00:26]}  Rff6 {[%clk 0:00:06]} 51. Kd4 {[%clk 0:00:23]}  Kf4 {[%clk 0:00:06]} 52. Bc4 {[%clk 0:00:19]}  Rd6+ {[%clk 0:00:06]} 53. Kc3 {[%clk 0:00:20]}  g5 {[%clk 0:00:06]} 54. Rh8 {[%clk 0:00:17]}  g4 {[%clk 0:00:06]} 55. Rh1 {[%clk 0:00:17]}  Rh6 {[%clk 0:00:04]} 56. Rg1 {[%clk 0:00:17]}  Rh3+ {[%clk 0:00:04]} 57. Kb4 {[%clk 0:00:17]}  Rg3 {[%clk 0:00:04]} 58. Kc5 {[%clk 0:00:18]}  Rxg1 {[%clk 0:00:04]} 0-1


[Site "https://www.chess.com"]